bitfinex/quotes_ETHUSD_20240922
["timestamp","ask_amount","ask_price","bid_price","bid_amount"]
[1727036782409,0.0093273,2582.7,2582.6,9.7998741]
[1727036782938,0.09169945,2582.7,2582.6,9.7998741]
[1727036783148,0.09169945,2582.7,2582.4,2.3389]
[1727036788269,0.09169945,2582.7,2582.4,6.21118]
[1727036799238,0.09169945,2582.7,2582.2,2.55862464]
[1727036799239,2.4811,2582.6,2581.9,2.4611]
[1727036799440,3.87224,2582.5,2582.0,3.87295]
[1727036799657,0.08277535,2582.5,2582.1,3.87278]
[1727036800437,0.08277535,2582.5,2582.2,6.33376]
[1727036800856,3.87208,2582.6,2582.2,6.33376]
[1727036801478,0.08307775,2582.5,2582.2,6.33376]
[1727036803469,0.08307775,2582.5,2582.4,3.87236]
[1727036803780,0.0093273,2582.7,2582.4,3.87236]
[1727036803975,0.0829386,2582.5,2582.4,3.87236]
[1727036804160,0.0093273,2582.7,2582.4,3.87236]
[1727036804367,0.0829386,2582.5,2582.4,3.87236]
[1727036804536,0.0093273,2582.7,2582.4,3.87236]
[1727036804736,0.0829386,2582.5,2582.4,3.87236]
[1727036804973,0.0093273,2582.7,2582.4,3.87236]
[1727036805150,0.0829386,2582.5,2582.4,3.87236]
[1727036805350,0.0093273,2582.7,2582.4,3.87236]
[1727036805547,0.0829386,2582.5,2582.4,3.87236]
[1727036805749,0.0093273,2582.7,2582.4,3.87236]
[1727036806099,0.0093273,2582.7,2582.6,3.87206]
[1727036809779,11.32103,2583.3,2582.7,3.87179]
[1727036809975,3.884562,2583.3,2582.7,3.87179]
[1727036810369,5.91337922,2583.3,2582.7,3.87179]
[1727036812275,0.08317371,2583.2,2582.7,3.87179]
[1727036812448,0.08317371,2583.2,2582.7,4.58577975]
[1727036812789,0.09670571,2583.2,2582.7,4.58577975]
[1727036813686,3.96787571,2583.2,2582.7,0.71398975]
[1727036813891,5.99708734,2583.2,2582.6,3.87206]
[1727036814087,5.99708734,2583.2,2582.7,3.87186]
[1727036814897,3.96787571,2583.2,2582.7,3.87186]
[1727036815054,3.96787571,2583.2,2582.7,6.43048464]
[1727036815251,5.99708734,2583.2,2582.7,6.43048464]
[1727036815490,2.12591734,2583.2,2582.9,3.87159]
[1727036815788,0.09670571,2583.2,2582.9,6.12529]
[1727036816161,0.09670571,2583.2,2583.1,6.42993464]
[1727036818679,0.09670571,2583.2,2583.1,8.68363464]
[1727036821459,0.09670571,2583.2,2583.1,9.23363464]
[1727036823262,0.09670571,2583.2,2583.1,8.68363464]
[1727036827578,0.09670571,2583.2,2583.1,12.23363464]
[1727036827780,0.09670571,2583.2,2583.1,13.96970085]
[1727036828382,0.09670571,2583.2,2583.1,13.41970085]
[1727036837133,0.09670571,2583.2,2583.0,3.87136]
[1727036837894,0.09670571,2583.2,2583.1,6.42993464]
[1727036839816,0.09670571,2583.2,2583.1,2.55862464]
[1727036839992,6.23413,2583.1,2582.8,2.55862464]
[1727036840188,2.3628,2583.1,2582.6,3.87196]
[1727036840387,0.0784724,2583.0,2582.6,3.87196]
[1727036841205,0.0920044,2583.0,2582.6,3.87196]
[1727036842506,0.0920044,2583.0,2582.6,7.74395]
[1727036843029,0.0920044,2583.0,2582.6,7.74393]
[1727036845020,0.0920044,2583.0,2582.8,3.87174]
[1727036847033,0.0920044,2583.0,2582.7,2.55862464]
[1727036847262,3.9634744,2583.0,2582.7,2.55862464]
[1727036847424,2.301,2582.9,2582.7,2.55862464]
[1727036847759,2.37928534,2582.9,2582.7,2.55862464]
[1727036848170,2.39281734,2582.9,2582.7,2.55862464]
[1727036849767,6.26456734,2582.9,2582.3,6.43107464]
[1727036850451,3.87179,2582.8,2582.3,2.55862464]
[1727036850748,3.87179,2582.8,2582.3,6.43111464]
[1727036850749,3.95000337,2582.8,2582.3,6.43111464]
[1727036850953,0.07821337,2582.8,2582.4,3.87234]
[1727036851156,0.09174537,2582.8,2582.4,3.87234]
[1727036852266,0.09174537,2582.8,2582.4,5.14151846]
[1727036852473,0.09174537,2582.8,2582.6,2.55862464]
[1727036852655,0.09174537,2582.8,2582.6,6.43065464]
[1727036856533,0.09174537,2582.8,2582.6,10.30268464]
[1727036856718,0.09174537,2582.8,2582.7,3.87191]
[1727036856904,0.09174537,2582.8,2582.7,4.83872845]
[1727036866067,0.09174537,2582.8,2582.5,3.87221]
[1727036866240,0.09174537,2582.8,2582.5,3.87219]
[1727036868976,0.09174537,2582.8,2582.4,11.5723431]
[1727036869913,0.09174537,2582.8,2582.4,7.7000531]
[1727036870622,0.09174537,2582.8,2582.4,6.43087464]
[1727036870980,0.09174537,2582.8,2582.4,10.30315464]
[1727036871484,0.09174537,2582.8,2582.4,6.43087464]
[1727036871706,0.09174537,2582.8,2582.4,10.30315464]
[1727036871923,0.09174537,2582.8,2582.4,6.43087464]
[1727036873717,0.09174537,2582.8,2582.4,10.30314464]
[1727036873915,0.09174537,2582.8,2582.5,1.03031446]
[1727036874239,0.09174537,2582.8,2582.4,10.30314464]
[1727036874442,0.09174537,2582.8,2582.6,1.18020847]
[1727036879398,0.09174537,2582.8,2582.6,5.05223847]
[1727036879705,0.09174537,2582.8,2582.6,7.43883847]
[1727036880901,0.09174537,2582.8,2582.7,3.87191]
[1727036881117,0.09174537,2582.8,2582.7,5.00298485]
[1727036884670,0.09174537,2582.8,2582.7,3.87191]
[1727036891784,2.55954537,2582.8,2582.6,8.92422847]
[1727036892270,2.55954537,2582.8,2582.6,5.05219847]
[1727036892832,2.55954537,2582.8,2582.6,8.92418847]
[1727036895596,2.55954537,2582.8,2582.6,5.05219847]
[1727036896673,2.55954537,2582.8,2582.6,8.92418847]
[1727036896876,2.55954537,2582.8,2582.6,5.05219847]
[1727036898278,2.55954537,2582.8,2582.6,8.92418847]
[1727036899162,2.55954537,2582.8,2582.6,5.05219847]
[1727036902543,2.55954537,2582.8,2582.1,5.3953]
[1727036902748,3.87207,2582.6,2582.1,3.87274]
[1727036902953,2.4231,2582.5,2582.1,3.87274]
[1727036903252,2.49859177,2582.5,2582.1,3.87274]
[1727036904743,2.49859177,2582.5,2582.1,7.74546]
[1727036905049,2.49859177,2582.5,2582.2,1.18020847]
[1727036905549,2.49859177,2582.5,2582.2,5.05279847]
[1727036906396,2.49859177,2582.5,2582.2,5.94535032]
[1727036910584,2.49859177,2582.5,2582.4,1.18020847]
[1727036910746,0.07549177,2582.5,2582.4,5.05256847]
[1727036911199,0.013532,2582.7,2582.5,3.87206]
[1727036911352,0.013532,2582.7,2582.6,1.18020847]
[1727036917365,0.08868718,2582.7,2582.6,1.18020847]
[1727036917596,0.013532,2582.7,2582.6,1.18020847]
[1727036917762,0.08868718,2582.7,2582.6,1.18020847]
[1727036917963,0.013532,2582.7,2582.6,1.18020847]
[1727036918392,0.08868718,2582.7,2582.6,1.18020847]
[1727036918599,0.013532,2582.7,2582.4,5.05255847]
[1727036918802,0.08868718,2582.7,2582.4,5.05255847]
[1727036918975,0.013532,2582.7,2582.4,5.05255847]
[1727036919172,0.07515518,2582.6,2582.4,5.05255847]
[1727036919389,0.07515518,2582.6,2582.4,6.18458432]
[1727036920290,0.07515518,2582.6,2582.4,5.05255847]
[1727036921468,0.07515518,2582.6,2582.5,3.87221]
[1727036924422,0.07515518,2582.6,2582.5,6.26801]
[1727036927783,0.07515518,2582.6,2582.5,3.87221]
[1727036931590,0.07515518,2582.6,2582.5,6.34544017]
[1727036931820,0.07515518,2582.6,2582.5,7.40780986]
[1727036932020,0.013532,2582.7,2582.6,3.87206]
[1727036932229,0.013532,2582.7,2582.6,5.05226847]
[1727036932428,0.08878334,2582.7,2582.6,5.05226847]
[1727036932632,0.08878334,2582.7,2582.6,7.44806847]
[1727036932807,0.08878334,2582.7,2582.6,9.0813113]
[1727036933003,0.013532,2582.7,2582.6,9.0813113]
[1727036933228,0.08889394,2582.7,2582.6,9.0813113]
[1727036934259,0.08889394,2582.7,2582.6,9.47444825]
[1727036934899,0.08889394,2582.7,2582.6,9.0813113]
[1727036935503,0.08889394,2582.7,2582.6,9.47447708]
[1727036936245,0.08889394,2582.7,2582.6,9.0813113]
[1727036936958,0.08889394,2582.7,2582.6,12.6313113]
[1727036937303,0.08889394,2582.7,2582.6,13.03489342]
[1727036937528,0.013532,2582.7,2582.6,12.6313113]
[1727036937926,0.013532,2582.7,2582.6,13.26016232]
[1727036938243,0.013532,2582.7,2582.6,12.6313113]
[1727036940446,0.013532,2582.7,2582.6,11.45110283]
[1727036940631,0.013532,2582.7,2582.6,12.6313113]
[1727036945740,0.013532,2582.7,2582.6,12.0813113]
[1727036950362,0.013532,2582.7,2582.6,9.6855113]
[1727036952484,0.08913436,2582.7,2582.6,9.6855113]
[1727036952629,0.013532,2582.7,2582.6,9.6855113]
[1727036953143,0.08913436,2582.7,2582.6,9.6855113]
[1727036954574,0.013532,2582.7,2582.6,9.6855113]
[1727036962392,0.013532,2582.7,2582.6,8.50530283]
[1727036962553,0.013532,2582.7,2582.6,9.6855113]
[1727036962755,0.013532,2582.7,2582.6,8.05226847]
[1727036966986,0.013532,2582.7,2582.6,6.87206]
[1727036967193,0.08907185,2582.7,2582.6,8.05226847]
[1727036967965,0.013532,2582.7,2582.6,8.05226847]
[1727036971087,0.08903338,2582.7,2582.6,8.05226847]
[1727036971289,0.013532,2582.7,2582.6,8.05226847]
[1727036971500,0.08903338,2582.7,2582.6,8.05226847]
[1727036972185,0.013532,2582.7,2582.6,8.05226847]
[1727036973190,0.013532,2582.7,2582.6,9.86282132]
[1727036973515,0.013532,2582.7,2582.6,12.19732132]
[1727036974198,0.013532,2582.7,2582.6,12.74732132]
[1727036975206,0.013532,2582.7,2582.6,13.37611305]
[1727036975769,0.013532,2582.7,2582.6,14.66855868]
[1727036975985,0.013532,2582.7,2582.6,14.66852786]
[1727036977238,0.013532,2582.7,2582.6,14.03973613]
[1727036977870,0.013532,2582.7,2582.6,17.59410485]
[1727036978070,0.013532,2582.7,2582.6,18.00841074]
[1727036978276,0.013532,2582.7,2582.6,19.18457037]
[1727036979498,0.013532,2582.7,2582.6,17.58295721]
[1727036979702,0.013532,2582.7,2582.6,18.79453174]
[1727036980930,0.013532,2582.7,2582.6,17.37892851]
[1727036981353,0.013532,2582.7,2582.6,18.79312183]
[1727036983427,0.013532,2582.7,2582.6,16.28345701]
[1727036983632,0.038116,2583.5,2583.4,3.87086]
[1727036983845,0.038116,2583.5,2583.4,5.05106847]
[1727036984047,0.11140466,2583.5,2583.4,5.05106847]
[1727036984366,0.11140466,2583.5,2583.4,5.94327432]
[1727037000703,0.11140466,2583.5,2583.4,3.87086]
[1727037000987,2.59900466,2583.5,2583.4,3.87086]
[1727037001192,2.59900466,2583.5,2583.3,3.87101]
[1727037002039,2.59900466,2583.5,2583.4,3.87086]
[1727037002473,2.59900466,2583.5,2583.4,5.05106847]
[1727037002964,2.59900466,2583.5,2583.4,3.87086]
[1727037003149,2.59900466,2583.5,2583.4,5.05106847]
[1727037004453,2.59900466,2583.5,2582.8,2.4495]
[1727037004454,2.59900466,2583.5,2583.0,3.8714]
[1727037004653,2.59900466,2583.5,2583.1,5.05146847]
[1727037004904,2.3801,2583.4,2583.1,1.18020847]
[1727037005199,2.3801,2583.4,2583.0,3.8714]
[1727037005754,2.3801,2583.4,2583.0,5.05160847]
[1727037008402,2.3801,2583.4,2582.3,4.67967508]
[1727037008607,2.3801,2582.9,2582.5,3.87214]
[1727037008790,3.87164,2582.9,2582.4,1.18020847]
[1727037009102,6.25189,2582.8,2582.4,1.18020847]
[1727037009304,2.3801,2582.7,2582.4,1.18020847]
[1727037013995,2.3801,2582.7,2582.6,5.05226847]
[1727037014570,2.3801,2583.2,2582.8,3.87168]
[1727037014815,2.3801,2583.2,2582.9,5.05172847]
[1727037017821,0.07058337,2583.1,2582.8,8.92356847]
[1727037017988,0.07058337,2583.1,2582.9,3.87159]
[1727037018185,0.07058337,2583.1,2582.8,5.05188847]
[1727037018186,0.07058337,2583.1,2583.0,3.87146]
[1727037018389,0.07058337,2583.1,2583.0,5.05166847]
[1727037020131,2.3801,2583.0,2582.7,3.87188]
[1727037020291,2.3801,2583.0,2582.7,3.87183]
[1727037020624,0.07067009,2582.9,2582.7,3.87177]
[1727037025963,0.07067009,2582.9,2582.8,5.05196847]
[1727037026650,0.07067009,2582.9,2582.8,5.12939226]
[1727037026857,2.4909,2583.4,2583.1,3.87122]
[1727037027067,2.4909,2583.4,2583.1,5.05142847]
[1727037027360,2.4909,2583.4,2583.2,3.87114]
[1727037028129,2.4909,2583.4,2583.1,5.05142847]
[1727037033981,2.4909,2583.4,2583.1,7.33862847]
[1727037034135,2.4909,2583.4,2583.2,3.87103]
[1727037034482,0.06944074,2583.3,2583.2,3.87103]
[1727037035034,2.529016,2583.5,2583.3,3.87101]
[1727037035535,2.529016,2583.5,2583.3,5.05121847]
[1727037037478,2.529016,2583.5,2583.3,5.05114847]
[1727037038035,2.529016,2583.5,2583.3,3.87094]
[1727037039687,2.529016,2583.5,2583.3,7.74188]
[1727037039853,2.529016,2583.5,2583.3,3.87094]
[1727037041349,2.529016,2583.5,2583.3,7.74186]
[1727037041679,2.529016,2583.5,2583.3,8.92206847]
[1727037046480,2.529016,2583.5,2583.3,5.05112847]
[1727037046982,2.529016,2583.5,2583.3,3.87092]
[1727037049450,0.06964807,2583.4,2583.3,3.87092]
[1727037054988,0.06964807,2583.4,2583.1,5.05144847]
[1727037055350,0.06964807,2583.4,2582.9,2.2872]
[1727037055557,3.8712,2583.2,2582.7,3.8718]
[1727037055776,2.3098,2583.1,2582.8,3.87175]
[1727037055964,2.37946734,2583.1,2582.8,3.87175]
[1727037056374,2.37946734,2583.1,2582.7,5.05200847]
[1727037056586,2.37946734,2583.1,2582.8,3.87174]
[1727037059197,2.37946734,2583.1,2582.7,1.18020847]
[1727037060301,6.25084734,2583.1,2582.5,5.05241847]
[1727037060462,6.18128,2583.0,2582.5,5.05241847]
[1727037060792,8.21217923,2583.0,2582.5,1.18020847]
[1727037060991,0.06936841,2582.9,2582.5,1.18020847]
[1727037061359,0.06936841,2582.9,2582.5,5.05240847]
[1727037061568,0.06936841,2582.9,2582.7,1.18020847]
[1727037062210,0.06936841,2582.9,2582.8,3.87176]
[1727037068997,0.06936841,2582.9,2582.7,1.18020847]
[1727037069186,0.06936841,2582.9,2582.6,3.87197]
[1727037069592,0.06936841,2582.9,2582.5,5.05229847]
[1727037069790,0.06936841,2582.9,2582.6,3.87205]
[1727037072224,0.06936841,2582.9,2582.6,7.7441]
[1727037072421,0.06936841,2582.9,2582.8,3.87176]
[1727037073092,0.038116,2583.5,2582.7,5.05211847]
[1727037073093,0.038116,2583.5,2583.3,3.87094]
[1727037073282,2.353016,2583.5,2583.3,3.87094]
[1727037073484,2.353016,2583.5,2583.4,1.18020847]
[1727037073680,0.038116,2583.5,2583.4,1.18020847]
[1727037074502,0.038116,2583.5,2583.4,5.05106847]
[1727037075203,0.038116,2583.5,2583.4,1.18020847]
[1727037077467,0.02322169,2583.5,2583.4,1.18020847]
[1727037078112,0.02322169,2583.5,2583.3,7.74185]
[1727037079198,0.02322169,2583.5,2583.3,3.87092]
[1727037079395,0.06495938,2583.4,2583.3,3.87092]
[1727037099751,3.87108,2583.3,2582.8,2.475]
[1727037099964,2.4938,2583.2,2582.8,3.87176]
[1727037100166,6.43028922,2583.2,2582.7,3.87184]
[1727037100311,2.4938,2583.1,2582.7,3.87181]
[1727037100747,0.06522989,2583.0,2582.7,3.87181]
[1727037100930,0.06522989,2583.0,2582.7,7.74364]
[1727037101830,0.06522989,2583.0,2582.7,3.87181]
[1727037102028,0.06522989,2583.0,2582.7,7.74364]
[1727037102352,2.4938,2582.9,2582.4,1.18020847]
[1727037102559,0.06482413,2582.8,2582.4,1.18020847]
[1727037102716,2.4938,2582.7,2582.1,6.34777]
[1727037102916,6.3658,2582.7,2582.1,3.87272]
[1727037103154,0.06471785,2582.6,2582.1,3.87272]
[1727037103454,2.4938,2582.5,2582.1,3.87272]
[1727037103814,0.06449555,2582.4,2582.1,3.87272]
[1727037104755,0.06449555,2582.4,2582.2,3.87265]
[1727037105557,0.06449555,2582.4,2582.1,5.05292847]
[1727037106537,0.06449555,2582.4,2582.1,8.92565847]
[1727037107025,0.06449555,2582.4,2582.2,3.87264]
[1727037111070,0.06449555,2582.4,2582.0,5.05310847]
[1727037111569,0.06449555,2582.4,2581.8,3.87325]
[1727037111876,2.3215,2582.3,2581.8,5.05345847]
[1727037112172,0.06420074,2582.2,2581.8,8.92664847]
[1727037112377,0.06420074,2582.2,2581.9,3.8731]
[1727037112574,6.19403,2582.3,2581.9,3.8731]
[1727037112732,0.06420074,2582.1,2581.9,3.8731]
[1727037113051,0.06420074,2582.1,2581.6,5.05365847]
[1727037113052,10.06663,2582.3,2581.7,3.87331]
[1727037113375,2.3215,2582.1,2581.6,5.05365847]
[1727037113734,0.06402188,2582.0,2581.6,5.05365847]
[1727037115731,0.06402188,2582.0,2581.7,3.87339]
[1727037121358,2.3215,2581.9,2581.4,8.92772847]
[1727037121545,3.87313,2581.9,2581.2,3.87405]
[1727037121749,3.87342,2581.7,2581.2,7.74813]
[1727037122298,0.06386231,2581.6,2581.2,7.74813]
[1727037122845,0.06386231,2581.6,2581.3,3.87399]
[1727037123553,0.06386231,2581.6,2581.3,5.05419847]
[1727037125264,2.3428,2581.5,2581.3,1.18020847]
[1727037125767,0.06386231,2581.4,2581.3,1.18020847]
[1727037126183,0.06386231,2581.4,2581.2,3.87405]
[1727037127984,0.06386231,2581.4,2581.2,8.92834847]
[1727037128506,0.06386231,2581.4,2581.3,6.25241]
[1727037128858,2.3428,2582.1,2581.8,3.87316]
[1727037129259,0.06325302,2582.0,2581.8,3.87316]
[1727037129888,0.06325302,2582.0,2581.8,7.74634]
[1727037131079,0.06325302,2582.0,2581.9,3.87311]
[1727037134672,0.06325302,2582.0,2581.9,5.05331847]
[1727037135006,0.06325302,2582.0,2581.9,5.94596632]
[1727037135212,2.3428,2582.3,2582.1,3.87273]
[1727037135789,2.3428,2582.3,2582.2,3.87266]
[1727037136193,2.3428,2582.8,2582.2,3.87266]
[1727037136484,2.3428,2582.8,2582.7,3.87191]
[1727037136886,2.3428,2583.3,2582.9,3.87156]
[1727037137409,2.3428,2583.2,2582.9,3.87156]
[1727037138741,2.3428,2583.2,2582.8,3.87176]
[1727037139211,2.3428,2583.0,2582.5,3.87221]
[1727037139417,2.3428,2582.8,2582.4,3.87228]
[1727037139723,0.06390096,2582.7,2582.4,3.87228]
[1727037140018,2.3428,2582.8,2582.3,7.74482]
[1727037140202,0.06390096,2582.7,2582.3,7.74484]
[1727037140407,6.21457,2582.8,2582.3,7.74484]
[1727037140717,0.06390096,2582.7,2582.3,7.74484]
[1727037141087,2.3428,2582.8,2582.3,7.74484]
[1727037141281,0.06390096,2582.6,2582.3,7.74484]
[1727037141480,2.3428,2582.8,2582.3,7.74484]
[1727037141706,0.06390096,2582.5,2582.3,7.74484]
[1727037141889,2.3428,2582.8,2582.3,7.74484]
[1727037142193,2.3428,2582.8,2582.3,7.74482]
[1727037142376,0.06378979,2582.7,2582.3,7.74482]
[1727037142574,2.3428,2582.8,2582.3,7.74482]
[1727037142814,0.06378979,2582.6,2582.4,3.87234]
[1727037142979,2.3428,2582.8,2582.4,3.87234]
[1727037143184,0.06378979,2582.7,2582.4,3.87234]
[1727037143433,2.3428,2582.6,2582.1,3.87272]
[1727037143583,2.3428,2582.4,2581.9,3.87304]
[1727037143917,2.3428,2582.4,2581.9,3.87299]
[1727037144118,0.06378013,2582.3,2581.9,7.74601]
[1727037144322,0.06378013,2582.3,2582.0,3.87293]
[1727037146817,0.06378013,2582.3,2581.9,3.87299]
[1727037148402,2.4459,2582.2,2581.8,3.87324]
[1727037148786,0.06358189,2582.1,2581.8,3.87324]
[1727037150603,0.06358189,2582.1,2581.9,3.87309]
[1727037152334,0.06358189,2582.1,2581.7,3.87326]
[1727037152503,0.06358189,2582.1,2581.8,3.87314]
[1727037154022,0.06358189,2582.1,2581.7,3.87326]
[1727037154627,2.4459,2582.0,2581.7,3.87326]
[1727037155015,2.4459,2582.0,2581.5,3.87361]
[1727037155213,0.06358189,2581.9,2581.5,3.87361]
[1727037156545,0.06358189,2581.9,2581.5,7.74723]
[1727037156748,0.06358189,2581.9,2581.6,3.87353]
[1727037156932,0.06358189,2581.9,2581.7,3.87341]
[1727037157241,0.06358189,2581.9,2581.6,3.87353]
[1727037158016,0.06358189,2581.9,2581.4,3.87376]
[1727037158252,0.06358189,2581.9,2581.2,3.87405]
[1727037158253,2.4459,2581.7,2581.2,3.87405]
[1727037158752,0.06341263,2581.6,2581.2,3.87405]
[1727037159247,0.06341263,2581.6,2581.1,3.88915431]
[1727037159551,2.4459,2581.5,2581.1,0.01489431]
[1727037159909,0.06335943,2581.4,2581.1,0.01489431]
[1727037160106,0.06335943,2581.4,2581.1,3.88919431]
[1727037160822,0.06335943,2581.4,2581.2,3.87415]
[1727037162828,0.06335943,2581.4,2581.2,7.74823]
[1727037163013,0.06335943,2581.4,2581.2,3.87408]
[1727037163214,0.06335943,2581.4,2581.2,7.74813]
[1727037163453,0.06335943,2581.4,2581.2,3.87405]
[1727037166929,0.06335943,2581.4,2581.3,3.87401]
[1727037167233,2.3579,2581.8,2581.3,3.87401]
[1727037167428,0.06300629,2581.4,2581.3,3.87401]
[1727037167630,6.2312,2581.8,2581.3,3.87401]
[1727037167822,0.06300629,2581.4,2581.3,3.87401]
[1727037168040,6.2312,2581.8,2581.3,3.87401]
[1727037168226,0.06300629,2581.4,2581.3,3.87401]
[1727037168542,6.2312,2581.8,2581.3,3.87401]
[1727037169044,0.06300629,2581.7,2581.3,3.87401]
[1727037169238,6.2312,2581.8,2581.3,3.87401]
[1727037169461,0.06300629,2581.6,2581.2,6.22995]
[1727037169629,3.87346,2581.7,2581.2,6.22995]
[1727037169830,0.06301597,2581.5,2581.2,3.87405]
[1727037170032,2.3579,2581.6,2581.2,3.87405]
[1727037170232,0.06301597,2581.4,2581.2,3.87405]
[1727037170433,6.23148,2581.6,2581.2,3.87405]
[1727037170633,0.06300629,2581.3,2581.2,3.87405]
[1727037170825,6.23148,2581.6,2581.2,3.87405]
[1727037171030,0.06300629,2581.3,2581.2,3.87405]
[1727037171265,6.23148,2581.6,2581.2,3.87405]
[1727037171932,0.06300629,2581.5,2581.2,3.87405]
[1727037173461,0.06300629,2581.5,2581.1,0.01489431]
[1727037173864,0.06300629,2581.5,2581.1,3.88919431]
[1727037174569,0.06300629,2581.5,2581.2,3.87415]
[1727037177205,0.06300629,2581.5,2581.1,0.01489431]
[1727037177206,0.06300629,2581.5,2581.1,3.88919431]
[1727037179401,0.06300629,2581.5,2581.1,3.88816327]
[1727037180362,3.93671629,2581.5,2581.1,0.01386327]
[1727037180687,0.06300629,2581.5,2581.1,3.88816327]
[1727037181563,3.93674629,2581.5,2581.1,0.01386327]
[1727037181858,6.23202,2581.3,2581.1,0.01386327]
[1727037182305,3.87416,2581.2,2581.1,0.01386327]
[1727037182459,3.93709856,2581.2,2581.1,0.01386327]
[1727037182660,6.29499856,2581.2,2581.1,0.01386327]
[1727037184984,2.42083856,2581.2,2581.1,0.01386327]
[1727037185484,0.06293856,2581.2,2581.1,6.30437327]
[1727037185685,0.06293856,2581.2,2581.1,8.62258698]
[1727037185901,6.14532,2581.7,2581.1,8.62258698]
[1727037186062,0.06060316,2581.2,2581.1,7.48650453]
[1727037186263,6.14532,2581.7,2581.1,6.30437327]
[1727037186464,0.06036119,2581.2,2581.1,6.30437327]
[1727037186664,6.14532,2581.7,2581.1,6.30437327]
[1727037186665,3.87371,2581.5,2581.1,0.01386327]
[1727037186901,2.33226119,2581.2,2581.1,0.01386327]
[1727037187060,6.14606,2581.2,2581.1,0.01386327]
[1727037187259,6.20642119,2581.2,2581.1,0.01386327]
[1727037189364,2.33226119,2581.2,2581.1,0.01386327]
[1727037189592,0.06036119,2581.2,2581.1,0.01386327]
[1727037189792,3.87401,2581.3,2581.1,0.01386327]
[1727037189984,0.06055475,2581.2,2581.1,0.01386327]
[1727037190162,3.87401,2581.3,2581.1,0.01386327]
[1727037190361,0.06055475,2581.2,2581.1,0.01386327]
[1727037190616,3.87401,2581.3,2581.1,0.01386327]
[1727037190777,0.06055475,2581.2,2581.1,0.01386327]
[1727037191108,3.87401,2581.3,2581.1,0.01386327]
[1727037191381,0.06056927,2581.2,2581.1,0.01386327]
[1727037191690,3.87401,2581.3,2581.1,0.01386327]
[1727037191894,0.06058379,2581.2,2581.1,0.01386327]
[1727037192438,0.06058863,2581.2,2581.1,0.01386327]
[1727037192601,3.87401,2581.3,2581.1,0.01386327]
[1727037192785,0.06058863,2581.2,2581.1,0.01386327]
[1727037192992,3.87401,2581.3,2581.1,0.01386327]
[1727037193212,0.06058863,2581.2,2581.1,0.01386327]
[1727037193426,3.87401,2581.3,2581.1,0.01386327]
[1727037193632,0.06058863,2581.2,2581.1,0.01386327]
[1727037193924,3.87416,2581.2,2581.1,0.01386327]
[1727037194134,3.93474863,2581.2,2581.1,0.01386327]
[1727037194736,6.39574863,2581.2,2581.1,0.01386327]
[1727037195533,8.42385507,2581.2,2581.1,0.01386327]
[1727037195832,6.39574863,2581.2,2581.1,0.01386327]
[1727037196425,8.42452616,2581.2,2581.1,0.01386327]
[1727037197127,6.39574863,2581.2,2581.1,0.01386327]
[1727037197289,8.42464789,2581.2,2581.1,0.01386327]
[1727037199041,6.39574863,2581.2,2581.1,0.01386327]
[1727037200426,8.42464789,2581.2,2581.1,0.01386327]
[1727037200851,6.39574863,2581.2,2581.1,0.01386327]
[1727037201149,8.42581915,2581.2,2581.1,0.01386327]
[1727037204421,8.42658387,2581.2,2581.1,0.01386327]
[1727037205749,8.42686281,2581.2,2581.1,0.01386327]
[1727037207920,0.06058863,2581.2,2581.1,0.01386327]
[1727037208121,0.06058863,2581.2,2581.1,6.19651498]
[1727037208348,2.03111418,2581.6,2581.3,6.19109]
[1727037208556,2.03111418,2581.7,2581.3,6.19109]
[1727037209543,2.03111418,2581.7,2581.3,2.3172]
[1727037210451,2.03068098,2581.7,2581.3,2.3172]
[1727037211257,5.90411098,2581.7,2581.3,2.3172]
[1727037211546,2.03068098,2581.6,2581.1,3.88809327]
[1727037212457,6.15497,2581.4,2581.1,0.01386327]
[1727037212622,5.90471098,2581.3,2581.1,0.01386327]
[1727037213215,3.87416,2581.2,2581.1,0.01386327]
[1727037213424,5.90484098,2581.2,2581.1,0.01386327]
[1727037214501,3.93491801,2581.2,2581.1,0.01386327]
[1727037214665,5.96559899,2581.2,2581.1,0.01386327]
[1727037215199,5.96639077,2581.2,2581.1,0.01386327]
[1727037215358,3.93491801,2581.2,2581.1,0.01386327]
[1727037215884,5.96639077,2581.2,2581.1,0.01386327]
[1727037216389,3.93491801,2581.2,2581.1,0.01386327]
[1727037216777,2.09223077,2581.2,2581.1,0.01386327]
[1727037217376,5.96639077,2581.2,2581.1,0.01386327]
[1727037220012,5.96692006,2581.2,2581.1,0.01386327]
[1727037222942,3.93491801,2581.2,2581.1,0.01386327]
[1727037223844,6.21591801,2581.2,2581.1,0.01386327]
[1727037224141,8.65432047,2581.2,2581.1,0.01386327]
[1727037224360,9.21591801,2581.2,2581.1,0.01386327]
[1727037224516,9.76591801,2581.2,2581.1,0.01386327]
[1727037226113,12.32665849,2581.2,2581.1,0.01386327]
[1727037226518,15.17146136,2581.2,2581.1,0.01386327]
[1727037229466,15.17204491,2581.2,2581.1,0.01386327]
[1727037230617,12.61130443,2581.2,2581.1,0.01386327]
[1727037230905,9.21591801,2581.2,2581.1,0.01386327]
[1727037231063,11.65445227,2581.2,2581.1,0.01386327]
[1727037233281,9.21591801,2581.2,2581.1,0.01386327]
[1727037233722,11.65448578,2581.2,2581.1,0.01386327]
[1727037234108,9.21591801,2581.2,2581.1,0.01386327]
[1727037234486,11.65443058,2581.2,2581.1,0.01386327]
[1727037234686,9.21591801,2581.2,2581.1,0.01386327]
[1727037236424,11.65432404,2581.2,2581.1,0.01386327]
[1727037237294,9.21591801,2581.2,2581.1,0.01386327]
[1727037238582,11.65422029,2581.2,2581.1,0.01386327]
[1727037238981,11.65421861,2581.2,2581.1,0.01386327]
[1727037239182,9.21591801,2581.2,2581.1,0.01386327]
[1727037239422,11.65419577,2581.2,2581.1,0.01386327]
[1727037239803,9.21591801,2581.2,2581.1,0.01386327]
[1727037240097,11.65414068,2581.2,2581.1,0.01386327]
[1727037240290,9.21591801,2581.2,2581.1,0.01386327]
[1727037240497,11.65412896,2581.2,2581.1,0.01386327]
[1727037241005,9.37312896,2581.2,2581.1,0.01386327]
[1727037241220,3.93491801,2581.2,2581.1,0.01386327]
[1727037241380,3.93491801,2581.2,2581.1,2.44946327]
[1727037241826,5.96652482,2581.2,2581.1,2.44946327]
[1727037243110,2.09236482,2581.2,2581.1,2.44946327]
[1727037243298,0.06075801,2581.2,2581.1,3.63163718]
[1727037243621,0.0601143,2581.2,2581.1,7.91935039]
[1727037243835,2.03160681,2581.4,2581.1,7.91935039]
[1727037244066,0.0601143,2581.2,2581.1,7.50594718]